[Event "32nd NATO Chess Championship"]
[Site "Tartu, Estonia"]
[Date "2022.06.28"]
[Round "3.10"]
[White "Farrell, John"]
[Black "Pietruszewski, Marcin"]
[Result "0-1"]
[TimeControl "90 min + 30 sec increment from move one"]
[WhiteFideId "2024608"]
[BlackFideId "1170295"]
[WhiteElo "1913"]
[BlackElo "2195"]

1. c4 {[%clk 01:30:57]} {[%emt 00:00:04]} e5 {[%clk 01:30:54]} {[%emt
00:00:07]} 2. Nc3 {[%clk 01:31:10]} {[%emt 00:00:15]} Nf6 {[%clk 01:31:16]}
{[%emt 00:00:08]} 3. g3 {[%clk 01:31:33]} {[%emt 00:00:07]} Bb4 {[%clk
01:31:38]} {[%emt 00:00:08]} 4. Nd5 {[%clk 01:31:45]} {[%emt 00:00:18]} Bc5
{[%clk 01:30:19]} {[%emt 00:01:48]} 5. Bg2 {[%clk 01:32:03]} {[%emt 00:00:13]}
O-O {[%clk 01:30:10]} {[%emt 00:00:39]} 6. e3 {[%clk 01:32:18]} {[%emt
00:00:15]} Nc6 {[%clk 01:22:23]} {[%emt 00:08:16]} 7. Ne2 {[%clk 01:32:39]}
{[%emt 00:00:09]} Re8 {[%clk 01:21:42]} {[%emt 00:01:11]} 8. O-O {[%clk
01:32:56]} {[%emt 00:00:14]} a6 {[%clk 01:21:00]} {[%emt 00:01:12]} 9. d4
{[%clk 01:32:56]} {[%emt 00:00:29]} Ba7 {[%clk 01:21:23]} {[%emt 00:00:08]} 10.
b3 {[%clk 01:31:31]} {[%emt 00:01:55]} d6 {[%clk 01:21:10]} {[%emt 00:00:42]}
11. h3 {[%clk 01:31:30]} {[%emt 00:00:32]} Bf5 {[%clk 01:20:44]} {[%emt
00:00:56]} 12. a3 {[%clk 01:30:53]} {[%emt 00:01:07]} h6 {[%clk 01:14:05]}
{[%emt 00:07:09]} 13. Bb2 {[%clk 01:30:07]} {[%emt 00:01:16]} e4 {[%clk
01:09:57]} {[%emt 00:04:37]} 14. Nb4 {[%clk 01:27:34]} {[%emt 00:03:04]} Nb8
{[%clk 01:03:09]} {[%emt 00:07:19]} 15. Kh2 {[%clk 01:23:35]} {[%emt 00:04:28]}
c6 {[%clk 01:02:35]} {[%emt 00:01:04]} 16. d5 {[%clk 01:22:11]} {[%emt
00:01:55]} c5 {[%clk 01:02:51]} {[%emt 00:00:13]} 17. Nc2 {[%clk 01:22:00]}
{[%emt 00:00:40]} Nbd7 {[%clk 01:02:56]} {[%emt 00:00:26]} 18. Ng1 {[%clk
01:18:35]} {[%emt 00:03:55]} b5 {[%clk 00:46:07]} {[%emt 00:17:19]} 19. Qe2
{[%clk 01:16:59]} {[%emt 00:02:05]} Rb8 {[%clk 00:45:35]} {[%emt 00:01:02]} 20.
Rab1 {[%clk 01:17:01]} {[%emt 00:00:28]} Rb7 {[%clk 00:45:34]} {[%emt
00:00:32]} 21. Ba1 {[%clk 01:13:10]} {[%emt 00:04:21]} Qb8 {[%clk 00:44:25]}
{[%emt 00:01:39]} 22. b4 {[%clk 01:13:00]} {[%emt 00:00:40]} bxc4 {[%clk
00:42:10]} {[%emt 00:02:45]} 23. Qxc4 {[%clk 01:11:28]} {[%emt 00:02:03]} a5
{[%clk 00:42:01]} {[%emt 00:00:39]} 24. Bxf6 {[%clk 01:11:11]} {[%emt
00:00:45]} Nxf6 {[%clk 00:35:50]} {[%emt 00:06:42]} 25. b5 {[%clk 01:11:17]}
{[%emt 00:00:24]} Re5 {[%clk 00:16:40]} {[%emt 00:19:40]} 26. Rfd1 {[%clk
01:11:24]} {[%emt 00:00:22]} Rbe7 {[%clk 00:07:51]} {[%emt 00:09:19]} 27. a4
{[%clk 01:11:07]} {[%emt 00:00:48]} Qb7 {[%clk 00:05:37]} {[%emt 00:02:45]} 28.
Qc3 {[%clk 01:10:17]} {[%emt 00:01:19]} Bb6 {[%clk 00:05:06]} {[%emt 00:01:02]}
29. Na3 {[%clk 01:09:34]} {[%emt 00:01:12]} Rxd5 {[%clk 00:04:25]} {[%emt
00:01:11]} 30. Nc4 {[%clk 01:09:44]} {[%emt 00:00:20]} Qc7 {[%clk 00:02:17]}
{[%emt 00:02:38]} 31. Ne2 {[%clk 01:08:19]} {[%emt 00:01:54]} Rxd1 {[%clk
00:02:01]} {[%emt 00:00:47]} 32. Rxd1 {[%clk 01:08:42]} {[%emt 00:00:06]} d5
{[%clk 00:02:27]} {[%emt 00:00:04]} 33. Nxb6 {[%clk 01:08:22]} {[%emt
00:00:51]} Qxb6 {[%clk 00:02:57]} {[%emt 00:00:01]} 34. Nf4 {[%clk 01:07:55]}
{[%emt 00:00:55]} Rd7 {[%clk 00:01:40]} {[%emt 00:01:47]} 35. Qe5 {[%clk
01:07:10]} {[%emt 00:01:15]} Be6 {[%clk 00:01:55]} {[%emt 00:00:15]} 36. Nxe6
{[%clk 01:04:39]} {[%emt 00:03:01]} fxe6 {[%clk 00:02:06]} {[%emt 00:00:19]} 37.
Qc3 {[%clk 01:02:26]} {[%emt 00:02:43]} Kf7 {[%clk 00:02:06]} {[%emt 00:00:29]}
38. Rc1 {[%clk 01:02:07]} {[%emt 00:00:50]} Rc7 {[%clk 00:01:57]} {[%emt
00:00:39]} 39. Rd1 {[%clk 01:01:18]} {[%emt 00:01:19]} Ke7 {[%clk 00:01:44]}
{[%emt 00:00:43]} 40. f3 {[%clk 01:00:57]} {[%emt 00:00:51]} exf3 {[%clk
00:01:14]} {[%emt 00:01:00]} 41. Bxf3 {[%clk 01:01:19]} {[%emt 00:00:08]} Rd7
{[%clk 00:01:29]} {[%emt 00:00:16]} 42. Rc1 {[%clk 00:56:12]} {[%emt 00:05:37]}
Rc7 {[%clk 00:01:11]} {[%emt 00:00:49]} 43. Rd1 {[%clk 00:54:10]} {[%emt
00:02:30]} Rc8 {[%clk 00:00:58]} {[%emt 00:00:43]} 44. Qe5 {[%clk 00:52:28]}
{[%emt 00:02:13]} Kf7 {[%clk 00:00:45]} {[%emt 00:00:43]} 45. Qc3 {[%clk
00:52:30]} {[%emt 00:00:28]} Qc7 {[%clk 00:00:40]} {[%emt 00:00:34]} 46. Rc1
{[%clk 00:52:20]} {[%emt 00:00:41]} Ke7 {[%clk 00:01:04]} {[%emt 00:00:05]} 47.
Rb1 {[%clk 00:51:36]} {[%emt 00:01:15]} Qb6 {[%clk 00:00:59]} {[%emt 00:00:35]}
48. Rc1 {[%clk 00:51:18]} {[%emt 00:00:48]} c4 {[%clk 00:01:02]} {[%emt
00:00:27]} 49. Kg2 {[%clk 00:50:12]} {[%emt 00:01:36]} Rc7 {[%clk 00:01:10]}
{[%emt 00:00:22]} 50. Kf2 {[%clk 00:48:56]} {[%emt 00:01:46]} Kd6 {[%clk
00:01:28]} {[%emt 00:00:11]} 51. Rd1 {[%clk 00:48:30]} {[%emt 00:00:56]} Ke7
{[%clk 00:01:30]} {[%emt 00:00:27]} 52. Ke2 {[%clk 00:47:39]} {[%emt 00:01:22]}
Qc5 {[%clk 00:01:40]} {[%emt 00:00:21]} 53. Rb1 {[%clk 00:47:30]} {[%emt
00:00:39]} Qb6 {[%clk 00:01:01]} {[%emt 00:01:09]} 54. Qa3+ {[%clk 00:47:03]}
{[%emt 00:00:56]} Kf7 {[%clk 00:01:23]} {[%emt 00:00:08]} 55. Qc3 {[%clk
00:47:15]} {[%emt 00:00:18]} Ke7 {[%clk 00:01:13]} {[%emt 00:00:41]} 56. Qa3+
{[%clk 00:47:34]} {[%emt 00:00:10]} Qd6 {[%clk 00:01:16]} {[%emt 00:00:27]} 57.
Qxd6+ {[%clk 00:46:54]} {[%emt 00:01:10]} Kxd6 {[%clk 00:01:45]} {[%emt
00:00:02]} 58. Kd2 {[%clk 00:46:57]} {[%emt 00:00:26]} Nd7 {[%clk 00:01:35]}
{[%emt 00:00:41]} 59. Kc3 {[%clk 00:45:43]} {[%emt 00:01:44]} Nb6 {[%clk
00:01:52]} {[%emt 00:00:13]} 60. Bd1 {[%clk 00:44:31]} {[%emt 00:01:42]} Rf7
{[%clk 00:02:01]} {[%emt 00:00:21]} 61. Rb2 {[%clk 00:40:03]} {[%emt 00:04:58]}
Kc5 {[%clk 00:02:19]} {[%emt 00:00:12]} 62. Rd2 {[%clk 00:38:33]} {[%emt
00:01:59]} e5 {[%clk 00:02:37]} {[%emt 00:00:13]} 63. h4 {[%clk 00:35:41]}
{[%emt 00:03:22]} Rf1 {[%clk 00:03:02]} {[%emt 00:00:04]} 64. Bc2 {[%clk
00:25:35]} {[%emt 00:10:37]} Rf3 {[%clk 00:02:14]} {[%emt 00:01:16]} 65. Kb2
{[%clk 00:24:19]} {[%emt 00:01:47]} Kb4 {[%clk 00:01:08]} {[%emt 00:01:36]} 66.
Re2 {[%clk 00:22:59]} {[%emt 00:01:51]} Rf1 {[%clk 00:01:09]} {[%emt 00:00:28]}
67. Rg2 {[%clk 00:21:45]} {[%emt 00:01:43]} Kc5 {[%clk 00:00:48]} {[%emt
00:00:53]} 68. g4 {[%clk 00:21:37]} {[%emt 00:00:38]} Kb4 {[%clk 00:00:38]}
{[%emt 00:00:40]} 69. g5 {[%clk 00:21:38]} {[%emt 00:00:29]} h5 {[%clk
00:01:01]} {[%emt 00:00:07]} 70. g6 {[%clk 00:21:46]} {[%emt 00:00:22]} d4
{[%clk 00:01:03]} {[%emt 00:00:29]} 71. exd4 {[%clk 00:18:53]} {[%emt
00:03:22]} exd4 {[%clk 00:01:31]} {[%emt 00:00:02]} 72. Rg3 {[%clk 00:16:41]}
{[%emt 00:02:42]} d3 {[%clk 00:01:07]} {[%emt 00:00:55]} 73. Bxd3 {[%clk
00:16:43]} {[%emt 00:00:27]} cxd3 {[%clk 00:01:19]} {[%emt 00:00:18]} 74. Rxd3
{[%clk 00:16:57]} {[%emt 00:00:15]} Rf2+ {[%clk 00:01:42]} {[%emt 00:00:06]} 75.
Kc1 {[%clk 00:16:16]} {[%emt 00:01:12]} Kxa4 {[%clk 00:01:55]} {[%emt
00:00:17]} 76. Rc3 {[%clk 00:16:20]} {[%emt 00:00:26]} Rg2 {[%clk 00:01:21]}
{[%emt 00:01:04]} 77. Rc5 {[%clk 00:16:14]} {[%emt 00:00:36]} Rxg6 {[%clk
00:01:42]} {[%emt 00:00:10]} 78. Rxh5 {[%clk 00:16:27]} {[%emt 00:00:16]} Rg2
{[%clk 00:02:07]} {[%emt 00:00:06]} 79. Rf5 {[%clk 00:13:57]} {[%emt 00:02:59]}
Kb4 {[%clk 00:02:10]} {[%emt 00:00:26]} 80. h5 {[%clk 00:13:01]} {[%emt
00:01:27]} a4 {[%clk 00:02:27]} {[%emt 00:00:14]} 81. Re5 {[%clk 00:12:51]}
{[%emt 00:00:40]} a3 {[%clk 00:02:50]} {[%emt 00:00:07]} 82. Kb1 {[%clk
00:12:20]} {[%emt 00:01:01]} Na4 {[%clk 00:03:09]} {[%emt 00:00:11]} 83. Re4+
{[%clk 00:11:25]} {[%emt 00:01:24]} Kb3 {[%emt 00:02:58]} 0-1

[Event "32nd NATO Chess Championship"]
[Site "Tartu, Estonia"]
[Date "2022.06.28"]
[Round "3.13"]
[White "Duren, Andrew"]
[Black "Pazeriene, Diana"]
[Result "1/2-1/2"]
[TimeControl "90 min + 30 sec increment from move one"]
[WhiteFideId "2019663"]
[BlackFideId "12802190"]
[WhiteElo "1997"]
[BlackElo "1930"]

1. d4 {[%clk 01:30:57]} {[%emt 00:00:03]} Nf6 {[%clk 01:30:48]} {[%emt
00:00:12]} 2. Bf4 {[%clk 01:31:18]} {[%emt 00:00:09]} g6 {[%clk 01:30:13]}
{[%emt 00:01:04]} 3. e3 {[%clk 01:31:39]} {[%emt 00:00:09]} Bg7 {[%clk
01:29:40]} {[%emt 00:01:03]} 4. Nf3 {[%clk 01:31:56]} {[%emt 00:00:12]} c5
{[%clk 01:29:23]} {[%emt 00:00:49]} 5. c3 {[%clk 01:32:09]} {[%emt 00:00:16]}
Qb6 {[%clk 01:24:23]} {[%emt 00:05:30]} 6. Qb3 {[%clk 01:31:50]} {[%emt
00:00:47]} d6 {[%clk 01:22:52]} {[%emt 00:02:04]} 7. Nbd2 {[%clk 01:23:41]}
{[%emt 00:08:38]} Nbd7 {[%clk 01:14:54]} {[%emt 00:08:28]} 8. h3 {[%clk
01:21:13]} {[%emt 00:02:57]} Qxb3 {[%clk 01:13:05]} {[%emt 00:02:20]} 9. axb3
{[%clk 01:21:15]} {[%emt 00:00:28]} b6 {[%clk 01:11:49]} {[%emt 00:01:46]} 10.
Ba6 {[%clk 01:19:10]} {[%emt 00:02:35]} O-O {[%clk 01:11:28]} {[%emt 00:00:52]}
11. O-O {[%clk 01:17:31]} {[%emt 00:02:09]} Nd5 {[%clk 01:08:02]} {[%emt
00:03:55]} 12. Bh2 {[%clk 01:16:18]} {[%emt 00:01:43]} Bxa6 {[%clk 01:08:05]}
{[%emt 00:00:28]} 13. Rxa6 {[%clk 01:16:42]} {[%emt 00:00:05]} Nc7 {[%clk
01:08:29]} {[%emt 00:00:06]} 14. Raa1 {[%clk 01:15:42]} {[%emt 00:01:30]} Rfc8
{[%clk 01:05:32]} {[%emt 00:03:27]} 15. Nc4 {[%clk 01:06:13]} {[%emt 00:09:59]}
cxd4 {[%clk 00:52:34]} {[%emt 00:13:28]} 16. exd4 {[%clk 01:04:45]} {[%emt
00:01:58]} b5 {[%clk 00:52:05]} {[%emt 00:00:59]} 17. Na5 {[%clk 01:00:54]}
{[%emt 00:04:20]} a6 {[%clk 00:48:28]} {[%emt 00:04:07]} 18. Rfe1 {[%clk
00:59:20]} {[%emt 00:02:04]} Bf6 {[%clk 00:46:58]} {[%emt 00:02:01]} 19. Rad1
{[%clk 00:46:10]} {[%emt 00:13:40]} d5 {[%clk 00:37:31]} {[%emt 00:09:58]} 20.
b4 {[%clk 00:38:33]} {[%emt 00:08:06]} Nb6 {[%clk 00:32:58]} {[%emt 00:05:03]}
21. Ne5 {[%clk 00:34:55]} {[%emt 00:04:08]} Nc4 {[%clk 00:30:05]} {[%emt
00:03:23]} 22. Naxc4 {[%clk 00:34:52]} {[%emt 00:00:34]} dxc4 {[%clk 00:28:59]}
{[%emt 00:01:36]} 23. Nd7 {[%clk 00:34:10]} {[%emt 00:01:10]} Nd5 {[%clk
00:29:21]} {[%emt 00:00:09]} 24. Nxf6+ {[%clk 00:34:25]} {[%emt 00:00:15]} exf6
{[%clk 00:29:36]} {[%emt 00:00:15]} 25. Ra1 {[%clk 00:34:27]} {[%emt 00:00:28]}
Rc6 {[%clk 00:27:34]} {[%emt 00:02:32]} 26. Kf1 {[%clk 00:32:02]} {[%emt
00:02:55]} f5 {[%clk 00:24:45]} {[%emt 00:03:20]} 27. Ke2 {[%clk 00:24:14]}
{[%emt 00:08:17]} f6 {[%clk 00:23:44]} {[%emt 00:01:31]} 28. Kd2 {[%clk
00:19:18]} {[%emt 00:05:26]} Kf7 {[%clk 00:24:00]} {[%emt 00:00:14]} 29. f3
{[%clk 00:17:43]} {[%emt 00:02:05]} f4 {[%clk 00:18:55]} {[%emt 00:05:35]} 30.
Bg1 {[%clk 00:17:50]} {[%emt 00:00:23]} Re8 {[%clk 00:16:15]} {[%emt 00:03:11]}
31. Bf2 {[%clk 00:16:42]} {[%emt 00:01:37]} Rxe1 {[%clk 00:16:06]} {[%emt
00:00:39]} 32. Rxe1 {[%clk 00:17:05]} {[%emt 00:00:08]} Re6 {[%clk 00:16:31]}
{[%emt 00:00:05]} 33. Ra1 {[%clk 00:15:36]} {[%emt 00:01:59]} g5 {[%clk
00:16:07]} {[%emt 00:00:54]} 34. Ra3 {[%clk 00:12:08]} {[%emt 00:03:58]} Ne3
{[%clk 00:13:35]} {[%emt 00:03:01]} 35. Bxe3 {[%clk 00:12:28]} {[%emt
00:00:10]} fxe3+ {[%clk 00:13:58]} {[%emt 00:00:07]} 36. Ke2 {[%clk 00:12:52]}
{[%emt 00:00:07]} f5 {[%clk 00:13:28]} {[%emt 00:01:00]} 37. Ra1 {[%clk
00:11:20]} {[%emt 00:02:02]} f4 {[%clk 00:13:45]} {[%emt 00:00:13]} 38. Rd1
{[%clk 00:11:27]} {[%emt 00:00:23]} Kf6 {[%clk 00:12:37]} {[%emt 00:01:38]} 39.
g4 {[%clk 00:10:51]} {[%emt 00:01:05]} Ke7 {[%clk 00:12:23]} {[%emt 00:00:45]}
40. h4 {[%clk 00:05:46]} {[%emt 00:05:35]} Rh6 {[%clk 00:09:09]} {[%emt
00:03:42]} 1/2-1/2

[Event "32nd NATO Chess Championship"]
[Site "Tartu, Estonia"]
[Date "2022.06.28"]
[Round "3.14"]
[White "Nill, Oliver"]
[Black "Wendler, Edward"]
[Result "1-0"]
[TimeControl "90 min + 30 sec increment from move one"]
[WhiteFideId "4652630"]
[BlackFideId "30956277"]
[WhiteElo "2166"]
[BlackElo "1839"]

1. c4 {[%clk 01:30:57]} {[%emt 00:00:04]} e6 {[%clk 01:30:54]} {[%emt
00:00:04]} 2. e4 {[%clk 01:31:17]} {[%emt 00:00:10]} d5 {[%clk 01:31:19]}
{[%emt 00:00:07]} 3. exd5 {[%clk 01:31:43]} {[%emt 00:00:03]} exd5 {[%clk
01:31:42]} {[%emt 00:00:06]} 4. d4 {[%clk 01:32:10]} {[%emt 00:00:05]} Nf6
{[%clk 01:32:05]} {[%emt 00:00:07]} 5. Nc3 {[%clk 01:32:12]} {[%emt 00:00:28]}
Be6 {[%clk 01:31:27]} {[%emt 00:01:06]} 6. Bg5 {[%clk 01:27:21]} {[%emt
00:05:21]} Be7 {[%clk 01:25:35]} {[%emt 00:06:22]} 7. c5 {[%clk 01:23:48]}
{[%emt 00:04:03]} O-O {[%clk 01:21:58]} {[%emt 00:04:07]} 8. Nf3 {[%clk
01:23:38]} {[%emt 00:00:40]} b6 {[%clk 01:15:37]} {[%emt 00:06:52]} 9. cxb6
{[%clk 01:22:37]} {[%emt 00:01:30]} axb6 {[%clk 01:13:05]} {[%emt 00:03:02]} 10.
Be2 {[%clk 01:22:38]} {[%emt 00:00:29]} Ne4 {[%clk 01:12:13]} {[%emt 00:01:22]}
11. Bxe7 {[%clk 01:20:16]} {[%emt 00:02:53]} Qxe7 {[%clk 01:12:35]} {[%emt
00:00:08]} 12. O-O {[%clk 01:19:35]} {[%emt 00:01:10]} Nxc3 {[%clk 01:10:33]}
{[%emt 00:02:32]} 13. bxc3 {[%clk 01:19:58]} {[%emt 00:00:07]} Nd7 {[%clk
01:06:16]} {[%emt 00:04:47]} 14. Re1 {[%clk 01:18:45]} {[%emt 00:01:44]} Ra3
{[%clk 00:56:55]} {[%emt 00:09:51]} 15. Qc2 {[%clk 01:11:34]} {[%emt 00:07:41]}
Qf6 {[%clk 00:43:39]} {[%emt 00:13:46]} 16. Bd3 {[%clk 00:58:59]} {[%emt
00:13:05]} h6 {[%clk 00:41:55]} {[%emt 00:02:12]} 17. Bb5 {[%clk 00:47:53]}
{[%emt 00:11:36]} Rfa8 {[%clk 00:36:05]} {[%emt 00:06:20]} 18. Qb2 {[%clk
00:38:07]} {[%emt 00:10:17]} Kh7 {[%clk 00:19:28]} {[%emt 00:17:06]} 19. Re3
{[%clk 00:30:38]} {[%emt 00:08:00]} Bf5 {[%clk 00:13:36]} {[%emt 00:06:22]} 20.
Bxd7 {[%clk 00:21:29]} {[%emt 00:09:38]} Bxd7 {[%clk 00:13:58]} {[%emt
00:00:07]} 21. Ne5 {[%clk 00:21:44]} {[%emt 00:00:16]} Bf5 {[%clk 00:11:25]}
{[%emt 00:03:02]} 22. Qd2 {[%clk 00:19:20]} {[%emt 00:02:55]} Be6 {[%clk
00:08:58]} {[%emt 00:02:58]} 23. h3 {[%clk 00:15:14]} {[%emt 00:04:36]} c5
{[%clk 00:04:52]} {[%emt 00:04:35]} 24. Rf3 {[%clk 00:11:00]} {[%emt 00:04:44]}
Qe7 {[%clk 00:05:04]} {[%emt 00:00:18]} 25. Re1 {[%clk 00:04:00]} {[%emt
00:07:30]} f6 {[%clk 00:05:07]} {[%emt 00:00:27]} 26. Qd3+ {[%clk 00:04:01]}
{[%emt 00:00:29]} Kg8 {[%clk 00:05:03]} {[%emt 00:00:34]} 27. Ng6 {[%clk
00:03:55]} {[%emt 00:00:36]} Qd7 {[%clk 00:04:37]} {[%emt 00:00:56]} 28. Rxe6
{[%clk 00:02:48]} {[%emt 00:01:38]} Qxe6 {[%clk 00:04:45]} {[%emt 00:00:21]} 29.
Re3 {[%clk 00:02:59]} {[%emt 00:00:20]} Qd6 {[%clk 00:02:14]} {[%emt 00:03:01]}
30. Ne7+ {[%clk 00:03:05]} {[%emt 00:00:23]} Kf8 {[%clk 00:01:34]} {[%emt
00:01:11]} 31. Qh7 {[%clk 00:03:06]} {[%emt 00:00:28]} Qxe7 {[%clk 00:02:00]}
{[%emt 00:00:04]} 32. Rxe7 {[%clk 00:03:33]} {[%emt 00:00:03]} Kxe7 {[%clk
00:02:18]} {[%emt 00:00:12]} 33. Qxg7+ {[%clk 00:03:57]} {[%emt 00:00:06]} Ke6
{[%clk 00:02:44]} {[%emt 00:00:05]} 34. Qb7 {[%clk 00:03:43]} {[%emt 00:00:43]}
cxd4 {[%clk 00:02:41]} {[%emt 00:00:34]} 35. Qxb6+ {[%clk 00:03:38]} {[%emt
00:00:35]} Kf7 {[%clk 00:02:21]} {[%emt 00:00:49]} 36. cxd4 {[%clk 00:03:38]}
{[%emt 00:00:31]} R8a7 {[%clk 00:01:32]} {[%emt 00:01:19]} 37. Qc6 {[%clk
00:03:11]} {[%emt 00:00:57]} Rxa2 {[%clk 00:01:35]} {[%emt 00:00:26]} 38. Qxd5+
{[%clk 00:03:36]} {[%emt 00:00:06]} Kg7 {[%clk 00:01:52]} {[%emt 00:00:13]} 39.
h4 {[%clk 00:03:03]} {[%emt 00:01:03]} R2a5 {[%clk 00:01:33]} {[%emt 00:00:49]}
40. Qe4 {[%clk 00:02:51]} {[%emt 00:00:41]} Rf7 {[%clk 00:01:05]} {[%emt
00:00:59]} 41. d5 {[%clk 00:03:06]} {[%emt 00:00:15]} Raa7 {[%clk 00:01:22]}
{[%emt 00:00:13]} 42. h5 {[%clk 00:03:23]} {[%emt 00:00:12]} f5 {[%clk
00:01:46]} {[%emt 00:00:07]} 43. Qd4+ {[%clk 00:03:24]} {[%emt 00:00:29]} Kh7
{[%clk 00:02:01]} {[%emt 00:00:14]} 44. d6 {[%clk 00:03:08]} {[%emt 00:00:47]}
Rad7 {[%clk 00:02:19]} {[%emt 00:00:12]} 45. Qe5 {[%clk 00:03:20]} {[%emt
00:00:17]} Ra7 {[%clk 00:01:58]} {[%emt 00:00:51]} 46. Qe6 {[%clk 00:03:36]}
{[%emt 00:00:15]} Ra1+ {[%clk 00:00:48]} {[%emt 00:01:40]} 47. Kh2 {[%clk
00:04:00]} {[%emt 00:00:04]} Raa7 {[%clk 00:01:14]} {[%emt 00:00:05]} 48. Qg6+
{[%clk 00:04:01]} {[%emt 00:00:29]} Kh8 {[%clk 00:01:42]} {[%emt 00:00:02]} 49.
Qxh6+ {[%clk 00:04:23]} {[%emt 00:00:08]} Kg8 {[%clk 00:02:01]} {[%emt
00:00:11]} 50. Qg6+ {[%clk 00:04:37]} {[%emt 00:00:16]} Kh8 {[%clk 00:02:05]}
{[%emt 00:00:26]} 51. h6 {[%clk 00:04:09]} {[%emt 00:00:59]} Rad7 {[%clk
00:01:37]} {[%emt 00:00:57]} 52. g3 {[%clk 00:03:25]} {[%emt 00:01:15]} Ra7
{[%clk 00:00:55]} {[%emt 00:01:12]} 53. Kg2 {[%clk 00:03:48]} {[%emt 00:00:06]}
Rad7 {[%clk 00:01:19]} {[%emt 00:00:06]} 54. h7 {[%clk 00:03:29]} {[%emt
00:00:50]} Rxh7 {[%clk 00:01:25]} {[%emt 00:00:23]} 55. Qe8+ {[%emt 00:00:37]}
1-0

[Event "32nd NATO Chess Championship"]
[Site "Tartu, Estonia"]
[Date "2022.06.28"]
[Round "3.15"]
[White "Giedraitis, Mingaudas"]
[Black "Jauk, Wilhelm"]
[Result "1/2-1/2"]
[TimeControl "90 min + 30 sec increment from move one"]
[WhiteFideId "12808806"]
[BlackFideId "24681067"]
[WhiteElo "1846"]
[BlackElo "2156"]

1. d4 {[%clk 01:30:55]} {[%emt 00:00:04]} d5 {[%clk 01:30:54]} {[%emt
00:00:07]} 2. Bf4 {[%clk 01:31:16]} {[%emt 00:00:09]} e6 {[%clk 01:30:59]}
{[%emt 00:00:26]} 3. e3 {[%clk 01:31:08]} {[%emt 00:00:37]} Bd6 {[%clk
01:29:39]} {[%emt 00:01:50]} 4. Bg3 {[%clk 01:31:22]} {[%emt 00:00:16]} Nf6
{[%clk 01:21:12]} {[%emt 00:08:57]} 5. Nd2 {[%clk 01:31:23]} {[%emt 00:00:29]}
c5 {[%clk 01:19:56]} {[%emt 00:01:47]} 6. c3 {[%clk 01:31:03]} {[%emt
00:00:49]} Nc6 {[%clk 01:19:48]} {[%emt 00:00:38]} 7. Ngf3 {[%clk 01:31:03]}
{[%emt 00:00:30]} O-O {[%clk 01:19:30]} {[%emt 00:00:47]} 8. Bd3 {[%clk
01:31:10]} {[%emt 00:00:24]} Re8 {[%clk 01:18:24]} {[%emt 00:01:36]} 9. Ne5
{[%clk 01:31:22]} {[%emt 00:00:18]} Bxe5 {[%clk 01:12:08]} {[%emt 00:06:47]} 10.
dxe5 {[%clk 01:31:03]} {[%emt 00:00:48]} Nd7 {[%clk 01:12:12]} {[%emt
00:00:24]} 11. Nf3 {[%clk 01:20:31]} {[%emt 00:11:04]} Nf8 {[%clk 00:52:17]}
{[%emt 00:20:25]} 12. O-O {[%clk 01:19:28]} {[%emt 00:01:32]} b6 {[%clk
00:49:13]} {[%emt 00:03:35]} 13. Qe2 {[%clk 01:14:33]} {[%emt 00:05:25]} Bb7
{[%clk 00:48:11]} {[%emt 00:01:32]} 14. Nd2 {[%clk 01:12:21]} {[%emt 00:02:41]}
Qe7 {[%clk 00:40:18]} {[%emt 00:08:23]} 15. f4 {[%clk 01:09:23]} {[%emt
00:03:28]} f5 {[%clk 00:40:23]} {[%emt 00:00:25]} 16. Nf3 {[%clk 00:55:35]}
{[%emt 00:14:18]} a6 {[%clk 00:37:16]} {[%emt 00:03:37]} 17. Rfd1 {[%clk
00:54:25]} {[%emt 00:01:40]} b5 {[%clk 00:37:19]} {[%emt 00:00:27]} 18. b3
{[%clk 00:53:41]} {[%emt 00:01:14]} Rec8 {[%clk 00:33:12]} {[%emt 00:04:36]} 19.
Bc2 {[%clk 00:48:38]} {[%emt 00:05:35]} Qc7 {[%clk 00:28:28]} {[%emt 00:05:13]}
20. Be1 {[%clk 00:46:29]} {[%emt 00:02:39]} Qb6 {[%clk 00:27:01]} {[%emt
00:01:58]} 21. Bf2 {[%clk 00:45:47]} {[%emt 00:01:12]} a5 {[%clk 00:27:08]}
{[%emt 00:00:23]} 22. Bd3 {[%emt 00:08:54]} Ba6 {[%clk 00:25:57]} {[%emt
00:01:38]} 23. Rab1 {[%clk 00:34:48]} {[%emt 00:03:08]} Qb7 {[%clk 00:23:25]}
{[%emt 00:03:00]} 24. c4 {[%clk 00:22:54]} {[%emt 00:12:26]} dxc4 {[%clk
00:19:50]} {[%emt 00:04:04]} 25. bxc4 {[%clk 00:23:00]} {[%emt 00:00:24]} b4
{[%clk 00:20:03]} {[%emt 00:00:17]} 26. e4 {[%clk 00:22:58]} {[%emt 00:00:32]}
Ne7 {[%clk 00:16:49]} {[%emt 00:03:44]} 27. exf5 {[%clk 00:22:10]} {[%emt
00:01:19]} exf5 {[%clk 00:17:17]} {[%emt 00:00:01]} 28. Qc2 {[%clk 00:19:58]}
{[%emt 00:02:42]} g6 {[%clk 00:16:42]} {[%emt 00:01:05]} 29. Be2 {[%clk
00:19:15]} {[%emt 00:01:13]} Ne6 {[%clk 00:16:40]} {[%emt 00:00:32]} 30. g3
{[%clk 00:19:17]} {[%emt 00:00:29]} Rd8 {[%clk 00:16:37]} {[%emt 00:00:33]} 31.
Rxd8+ {[%clk 00:13:13]} {[%emt 00:06:34]} Rxd8 {[%clk 00:17:00]} {[%emt
00:00:07]} 32. Rd1 {[%clk 00:13:33]} {[%emt 00:00:10]} Qa8 {[%clk 00:14:46]}
{[%emt 00:02:43]} 33. Rxd8+ {[%clk 00:12:03]} {[%emt 00:02:00]} Qxd8 {[%clk
00:15:08]} {[%emt 00:00:09]} 34. Qd3 {[%clk 00:12:08]} {[%emt 00:00:25]} Qxd3
{[%clk 00:15:03]} {[%emt 00:00:35]} 35. Bxd3 {[%clk 00:12:36]} {[%emt
00:00:02]} Nc6 {[%clk 00:14:55]} {[%emt 00:00:36]} 36. Kf1 {[%clk 00:11:34]}
{[%emt 00:01:33]} a4 {[%clk 00:14:35]} {[%emt 00:00:50]} 37. Ke2 {[%clk
00:10:50]} {[%emt 00:01:14]} b3 {[%clk 00:13:03]} {[%emt 00:02:02]} 38. axb3
{[%clk 00:10:32]} {[%emt 00:00:48]} a3 {[%clk 00:13:22]} {[%emt 00:00:12]} 39.
Be1 {[%clk 00:06:24]} {[%emt 00:04:38]} Ned4+ {[%clk 00:13:00]} {[%emt
00:00:51]} 40. Nxd4 {[%clk 00:06:52]} {[%emt 00:00:02]} Nxd4+ {[%clk 00:13:21]}
{[%emt 00:00:10]} 41. Kd1 {[%clk 00:06:48]} {[%emt 00:00:34]} Nxb3 {[%clk
00:09:18]} {[%emt 00:04:33]} 42. Bc3 {[%clk 00:06:14]} {[%emt 00:01:03]} a2
{[%clk 00:07:41]} {[%emt 00:02:08]} 43. Kc2 {[%clk 00:06:30]} {[%emt 00:00:13]}
Na5 {[%clk 00:07:41]} {[%emt 00:00:29]} 44. Kb2 {[%clk 00:05:51]} {[%emt
00:01:10]} Bxc4 {[%clk 00:07:45]} {[%emt 00:00:26]} 45. Bxa5 {[%clk 00:03:27]}
{[%emt 00:02:54]} 1/2-1/2